fUSD/lending_fUSD_20241104
["ID","MTS","AMOUNT","RATE_DAILY","PERIOD"]
[341227338,1730704238941,-500.0,0.00036649,2]
[341227340,1730704238950,-525.27258849,0.00036649,2]
[341227342,1730704238959,-500.0,0.00036649,2]
[341227344,1730704238968,-500.0,0.00036649,2]
[341227346,1730704238977,-500.0,0.00036649,2]
[341227348,1730704238986,-500.0,0.00036649,2]
[341227350,1730704238995,-500.0,0.00036649,2]
[341227352,1730704239005,-500.0,0.00036649,2]
[341227354,1730704239014,-500.0,0.00036649,2]
[341227356,1730704239023,-182.56616179,0.00036649,2]
[341227358,1730704239032,-189.67232111,0.00036649,2]
[341227360,1730704239041,-653.43,0.00036649,2]
[341227362,1730704239050,-542.14500612,0.00036649,2]
[341227364,1730704239059,-500.0,0.00036649,2]
[341227366,1730704239068,-621.11734973,0.00036649,2]
[341227368,1730704239077,-500.0,0.00036649,2]
[341227370,1730704239087,-500.0,0.00036649,2]
[341227372,1730704239096,-500.0,0.00036649,2]
[341227374,1730704239105,-500.0,0.00036649,2]
[341227376,1730704239114,-521.96001725,0.00036649,2]
[341227378,1730704239123,-500.0,0.00036649,2]
[341227380,1730704239133,-500.0,0.00036649,2]
[341227381,1730704239143,-461.23281429,0.00036649,2]
[341227383,1730704239151,-500.0,0.00036649,2]
[341227385,1730704239161,-500.0,0.00036649,2]
[341227388,1730704239170,-500.0,0.00036649,2]
[341227389,1730704239179,-500.0,0.00036649,2]
[341227391,1730704239188,-500.0,0.00036649,2]
[341227393,1730704239197,-500.0,0.00036649,2]
[341227395,1730704239207,-513.02189179,0.00036649,2]
[341227397,1730704239216,-466.58707172,0.00036649,2]
[341227399,1730704239225,-500.0,0.00036649,2]
[341227401,1730704239234,-251.08977863,0.00036649,2]
[341227403,1730704239243,-500.0,0.00036649,2]
[341227405,1730704239252,-500.0,0.00036649,2]
[341227407,1730704239261,-500.0,0.00036649,2]
[341227409,1730704239271,-500.0,0.00036649,2]
[341227411,1730704239279,-500.0,0.00036649,2]
[341227413,1730704239289,-500.0,0.00036649,2]
[341227415,1730704239298,-379.55085302,0.00036649,2]
[341227417,1730704239307,-500.0,0.00036649,2]
[341227419,1730704239316,-500.0,0.00036649,2]
[341227421,1730704239325,-533.09633604,0.00036649,2]
[341227423,1730704239336,-300.0,0.00036649,2]
[341227425,1730704239346,-502.77759779,0.00036649,2]
[341227427,1730704239355,-500.0,0.00036649,2]
[341227429,1730704239364,-500.0,0.00036649,2]
[341227431,1730704239374,-500.0,0.00036649,2]
[341227433,1730704239383,-500.0,0.00036649,2]
[341227435,1730704239393,-535.09455361,0.00036649,2]
[341227437,1730704239402,-524.29077783,0.00036649,2]
[341227439,1730704239411,-522.27757798,0.00036649,2]
[341227441,1730704239419,-500.0,0.00036649,2]
[341227443,1730704239428,-527.40396828,0.00036649,2]
[341227445,1730704239438,-507.0969351,0.00036649,2]
[341227447,1730704239446,-526.56983884,0.00036649,2]
[341227449,1730704239455,-500.0,0.00036649,2]
[341227451,1730704239464,-502.71150721,0.00036649,2]
[341227453,1730704239473,-507.16278506,0.00036649,2]
[341227455,1730704239482,-151.0,0.00036649,7]
[341227457,1730704239491,-500.0,0.00036649,2]
[341227459,1730704239500,-500.0,0.00036649,2]
[341227461,1730704239509,-500.0,0.00036649,2]
[341227463,1730704239519,-309.2462064,0.00036649,2]
[341227465,1730704239528,-500.0,0.00036649,2]
[341227467,1730704239537,-500.0,0.00036649,2]
[341227469,1730704239546,-425.0,0.00036649,2]
[341227471,1730704239555,-151.0,0.00036649,7]
[341227473,1730704239564,-151.0,0.00036649,7]
[341227475,1730704239573,-327.817982,0.00036649,7]
[341227477,1730704239584,-327.817982,0.00036649,7]
[341227479,1730704239593,-327.817982,0.00036649,7]
[341227482,1730704239602,-327.817982,0.00036649,7]
[341227483,1730704239611,-179.82,0.0003667,2]
[341227485,1730704239620,-500.89040859,0.00036673,5]
[341227487,1730704239629,-500.0,0.00036673,2]
[341227489,1730704239641,-500.0,0.00036678,2]
[341227491,1730704239649,-500.0,0.00036678,2]
[341227493,1730704239658,-520.0023059,0.00036678,2]
[341227495,1730704239667,-500.0,0.00036678,2]
[341227497,1730704239677,-500.0,0.00036678,2]
[341227499,1730704239686,-500.0,0.00036678,2]
[341227501,1730704239695,-541.60124917,0.00036678,2]
[341227503,1730704239705,-500.0,0.00036678,2]
[341227505,1730704239717,-500.0,0.00036678,2]
[341227507,1730704239727,-500.0,0.00036678,2]
[341227509,1730704239738,-500.0,0.00036678,2]
[341227512,1730704239748,-169.346191,0.00036679,2]
[341227514,1730704239757,-166.644052,0.00036679,2]
[341227516,1730704239766,-500.0,0.00036679,2]
[341227518,1730704239775,-671.7,0.00036679,2]
[341227520,1730704239784,-500.0,0.00036679,2]
[341227522,1730704239793,-151.0,0.00036679,7]
[341227524,1730704239802,-500.0,0.00036679,2]
[341227526,1730704239812,-698.73,0.00036679,2]
[341227527,1730704239821,-566.71627886,0.00036679,2]
[341227529,1730704239831,-302.49025701,0.00036679,2]
[341227531,1730704239840,-151.0,0.00036679,7]
[341227533,1730704239849,-500.0,0.00036679,2]
[341227535,1730704239858,-551.14,0.00036679,2]
[341227537,1730704239867,-500.0,0.00036679,2]
[341227539,1730704239877,-830.88,0.00036679,2]
[341227541,1730704239887,-500.0,0.00036679,2]
[341227544,1730704239896,-567.09341308,0.00036679,2]
[341227546,1730704239905,-500.0,0.00036679,2]
[341227547,1730704239914,-500.0,0.00036679,2]
[341227549,1730704239923,-549.9711057,0.00036679,2]
[341227551,1730704239932,-500.0,0.00036679,2]
[341227553,1730704239941,-500.0,0.00036679,2]
[341227555,1730704239950,-758.71,0.00036679,2]
[341227557,1730704239958,-500.0,0.00036679,2]
[341227559,1730704239967,-596.0,0.00036679,2]
[341227561,1730704239976,-500.0,0.00036679,2]
[341227563,1730704239985,-500.0,0.00036679,2]
[341227565,1730704239994,-500.0,0.00036679,2]
[341227567,1730704240003,-2285.04,0.00036679,2]
[341227569,1730704240012,-500.0,0.00036679,2]
[341227571,1730704240021,-500.0,0.00036679,2]
[341227573,1730704240031,-500.0,0.00036679,2]
[341227575,1730704240041,-1352.83,0.00036679,2]
[341227577,1730704240050,-500.0,0.00036679,2]
[341227579,1730704240059,-500.0,0.00036679,2]
[341227581,1730704240068,-577.82,0.00036679,2]
[341227583,1730704240079,-518.57560051,0.00036679,2]
[341227585,1730704240087,-500.0,0.00036679,2]
[341227587,1730704240096,-500.0,0.00036679,2]
[341227589,1730704240107,-500.0,0.00036679,2]
[341227591,1730704240118,-500.0,0.00036679,2]
[341227594,1730704240129,-500.0,0.00036679,2]
[341227596,1730704240139,-500.0,0.00036679,2]
[341227598,1730704240148,-545.88,0.00036679,2]
[341227600,1730704240159,-500.0,0.00036679,2]
[341227602,1730704240168,-500.0,0.00036679,2]
[341227604,1730704240177,-500.0,0.00036679,2]
[341227606,1730704240186,-500.0,0.00036679,2]
[341227608,1730704240195,-500.0,0.00036679,2]
[341227610,1730704240205,-500.0,0.00036679,2]
[341227612,1730704240215,-1400.46,0.00036679,2]
[341227614,1730704240225,-500.0,0.00036679,2]
[341227616,1730704240235,-321.58894093,0.00036679,2]
[341227628,1730704240245,-500.0,0.00036679,2]
[341227630,1730704240347,-500.0,0.00036679,2]
[341227632,1730704240356,-500.0,0.00036679,2]
[341227634,1730704240365,-500.0,0.00036679,2]
[341227636,1730704240374,-500.0,0.00036679,2]
[341227638,1730704240383,-500.0,0.00036679,2]
[341227640,1730704240392,-1253.38,0.00036679,2]
[341227642,1730704240401,-500.0,0.00036679,2]
[341227644,1730704240410,-500.0,0.00036679,2]
[341227646,1730704240419,-500.0,0.00036679,2]
[341227648,1730704240428,-500.0,0.00036679,2]
[341227650,1730704240437,-500.0,0.00036679,2]
[341227652,1730704240447,-327.817982,0.00036679,7]
[341227654,1730704240457,-327.817982,0.00036679,7]
[341227656,1730704240466,-500.0,0.00036679,2]
[341227658,1730704240475,-500.0,0.00036679,2]
[341227660,1730704240485,-500.0,0.00036679,2]
[341227662,1730704240494,-500.0,0.00036679,2]
[341227664,1730704240503,-500.0,0.00036679,2]
[341227666,1730704240512,-708.8,0.00036679,2]
[341227668,1730704240521,-500.0,0.00036679,2]
[341227669,1730704240529,-495.41641758,0.00036679,2]
[341227671,1730704240538,-500.0,0.00036679,2]
[341227673,1730704240547,-500.0,0.00036679,2]
[341227675,1730704240556,-6579.87,0.00036679,2]
[341227677,1730704240566,-1229.62,0.00036679,2]
[341227679,1730704240575,-500.0,0.00036679,2]
[341227681,1730704240585,-500.0,0.0003668,2]
[341227683,1730704240594,-590.22883802,0.0003668,2]
[341227685,1730704240603,-585.15160526,0.0003668,2]
[341227687,1730704240613,-500.0,0.0003668,2]
[341227690,1730704240624,-500.0,0.0003668,2]
[341227692,1730704240634,-500.0,0.0003668,2]
[341227694,1730704240650,-500.0,0.0003668,2]
[341227696,1730704240659,-250.3930412,0.0003668,2]
[341227698,1730704240669,-500.0,0.0003668,2]
[341227700,1730704240678,-500.0,0.0003668,2]
[341227702,1730704240689,-500.0,0.0003668,2]
[341227704,1730704240698,-500.0,0.0003668,2]
[341227706,1730704240707,-500.0,0.0003668,2]
[341227708,1730704240717,-500.0,0.0003668,2]
[341227710,1730704240726,-500.0,0.0003668,2]
[341227712,1730704240735,-500.0,0.0003668,2]
[341227713,1730704240744,-500.0,0.0003668,2]
[341227715,1730704240753,-500.0,0.0003668,2]
[341227717,1730704240762,-500.0,0.0003668,2]
[341227719,1730704240772,-500.0,0.0003668,2]
[341227721,1730704240782,-500.0,0.0003668,2]
[341227723,1730704240791,-500.0,0.0003668,2]
[341227725,1730704240800,-500.0,0.0003668,2]
[341227727,1730704240809,-500.0,0.0003668,2]
[341227729,1730704240818,-253.854031,0.0003668,7]
[341227731,1730704240827,-530.52161286,0.0003668,2]
[341227733,1730704240837,-500.0,0.0003668,2]
[341227735,1730704240846,-500.0,0.0003668,2]
[341227736,1730704240855,-500.0,0.0003668,2]
[341227737,1730704240864,-500.0,0.0003668,2]
[341227738,1730704240873,-500.0,0.0003668,2]
[341227739,1730704240883,-500.0,0.0003668,2]
[341227740,1730704240892,-500.0,0.0003668,2]
[341227741,1730704240901,-2000.0,0.0003668,2]
[341227742,1730704240910,-500.0,0.0003668,2]
[341227743,1730704240919,-500.0,0.0003668,2]
[341227744,1730704240928,-532.63791176,0.0003668,2]
[341227745,1730704240938,-500.0,0.0003668,2]
[341227746,1730704240947,-500.0,0.0003668,2]
[341227747,1730704240956,-500.0,0.0003668,2]
[341227748,1730704240965,-238.89192539,0.0003668,2]
[341227749,1730704240974,-500.0,0.0003668,2]
[341227750,1730704240984,-614.27657214,0.0003668,2]
[341227751,1730704240993,-500.0,0.0003668,2]
[341227752,1730704241003,-500.0,0.0003668,2]
[341227753,1730704241013,-500.0,0.0003668,2]
[341227754,1730704241022,-175.726207,0.0003668,7]
[341227755,1730704241032,-175.726207,0.0003668,7]
[341227756,1730704241041,-503.293522,0.0003668,7]
[341227757,1730704241051,-151.0,0.0003668,7]
[341227758,1730704241060,-151.0,0.0003668,7]
[341227759,1730704241069,-151.0,0.0003668,7]
[341227760,1730704241079,-151.0,0.0003668,7]
[341227761,1730704241089,-327.817982,0.0003668,7]
[341227762,1730704241098,-327.817982,0.0003668,7]
[341227763,1730704241107,-698.08551026,0.00036687,2]
[341227764,1730704241117,-179.82,0.00036687,2]
[341227765,1730704241127,-471.13881714,0.00036697,2]
[341227766,1730704241136,-500.0,0.00036697,2]
[341227767,1730704241145,-500.0,0.00036697,2]
[341227768,1730704241155,-500.0,0.00036697,2]
[341227769,1730704241165,-532.78233626,0.00036697,2]
[341227770,1730704241174,-529.98257978,0.00036697,2]
[341227771,1730704241183,-500.0,0.00036697,2]
[341227772,1730704241193,-500.0,0.00036697,2]
[341227773,1730704241203,-500.0,0.00036697,2]
[341227774,1730704241212,-500.0,0.00036697,2]
[341227775,1730704241222,-514.02691495,0.00036697,2]
[341227776,1730704241231,-500.0,0.00036697,2]
[341227777,1730704241241,-506.00079477,0.00036697,2]
[341227778,1730704241251,-500.0,0.00036697,2]
[341227779,1730704241260,-596.22980671,0.00036697,2]
[341227780,1730704241270,-500.0,0.00036697,2]
[341227781,1730704241279,-500.0,0.00036697,2]
[341227782,1730704241289,-500.0,0.00036697,2]
[341227783,1730704241298,-500.0,0.00036697,2]
[341227784,1730704241308,-500.0,0.00036697,2]
[341227785,1730704241318,-500.0,0.00036697,2]
[341227786,1730704241327,-500.0,0.00036697,2]
[341227787,1730704241337,-500.0,0.00036697,2]
[341227788,1730704241346,-500.0,0.00036697,2]
[341227789,1730704241356,-540.15841588,0.00036697,2]
[341227790,1730704241366,-579.29355661,0.00036697,2]
[341227791,1730704241375,-541.39967591,0.00036697,2]
[341227792,1730704241385,-500.0,0.00036697,2]
[341227793,1730704241394,-500.0,0.00036697,2]
[341227794,1730704241404,-500.0,0.00036697,2]
[341227795,1730704241413,-500.0,0.00036697,2]
[341227796,1730704241424,-500.0,0.00036697,2]
[341227797,1730704241433,-500.0,0.00036697,2]
[341227798,1730704241443,-500.0,0.00036697,2]
[341227799,1730704241452,-500.0,0.00036697,2]
[341227800,1730704241461,-500.0,0.00036697,2]
[341227801,1730704241472,-500.0,0.00036697,2]
[341227802,1730704241482,-500.0,0.00036697,2]
[341227803,1730704241492,-500.0,0.00036697,2]
[341227804,1730704241502,-165.37551233,0.00036697,2]
[341227805,1730704241511,-500.0,0.00036697,2]
[341227806,1730704241521,-403.35221615,0.00036697,2]
[341227807,1730704241530,-500.0,0.00036697,2]
[341227808,1730704241540,-500.0,0.00036697,2]
[341227809,1730704241549,-500.0,0.00036697,2]
[341227810,1730704241559,-500.0,0.00036697,2]
[341227811,1730704241568,-500.0,0.00036697,2]
[341227812,1730704241578,-503.7469009,0.00036697,2]
[341227813,1730704241587,-500.0,0.00036697,2]
[341227814,1730704241596,-500.0,0.00036697,2]
[341227815,1730704241606,-573.65675279,0.00036697,2]
[341227816,1730704241615,-500.0,0.00036697,2]
[341227817,1730704241624,-500.0,0.00036697,2]
[341227818,1730704241634,-500.0,0.00036697,2]
[341227819,1730704241645,-500.0,0.00036697,2]
[341227820,1730704241655,-500.0,0.00036697,2]
[341227821,1730704241664,-500.0,0.00036697,2]
[341227822,1730704241673,-500.0,0.00036697,2]
[341227823,1730704241682,-200.0,0.00036697,2]
[341227824,1730704241691,-537.69696683,0.00036697,2]
[341227825,1730704241701,-500.0,0.00036697,2]
[341227826,1730704241710,-500.0,0.00036697,2]
[341227827,1730704241932,-500.0,0.00036697,2]
[341227828,1730704241942,-250.0,0.00036697,2]
[341227829,1730704241952,-500.0,0.00036697,2]
[341227830,1730704241961,-416.59299583,0.00036697,2]
[341227831,1730704241971,-521.93157916,0.00036697,2]
[341227832,1730704241980,-500.0,0.00036697,2]
[341227833,1730704241989,-547.60021487,0.00036697,2]
[341227834,1730704241999,-150.0,0.00036697,2]
[341227835,1730704242008,-500.0,0.00036697,2]
[341227836,1730704242018,-500.0,0.00036697,2]
[341227837,1730704242028,-332.20468289,0.00036697,2]
[341227838,1730704242037,-500.0,0.00036697,2]
[341227839,1730704242046,-519.02766293,0.00036697,2]
[341227840,1730704242055,-500.0,0.00036697,2]
[341227841,1730704242065,-500.0,0.00036697,2]
[341227842,1730704242074,-637.30913818,0.00036697,2]
[341227843,1730704242085,-500.0,0.00036697,2]
[341227844,1730704242094,-500.0,0.00036697,2]
[341227845,1730704242103,-508.46610778,0.00036697,2]
[341227846,1730704242112,-500.0,0.00036697,2]
[341227847,1730704242122,-500.0,0.00036697,2]
[341227848,1730704242131,-647.01641321,0.00036697,2]
[341227849,1730704242140,-500.0,0.00036697,2]
[341227850,1730704242150,-500.0,0.00036697,2]
[341227851,1730704242159,-416.09780576,0.00036697,2]
[341227852,1730704242169,-500.0,0.00036697,2]
[341227853,1730704242178,-500.0,0.00036697,2]
[341227854,1730704242187,-500.0,0.00036697,2]
[341227855,1730704242196,-500.0,0.00036697,2]
[341227856,1730704242206,-500.0,0.00036697,2]
[341227857,1730704242216,-500.0,0.00036697,2]
[341227858,1730704242226,-610.73727402,0.00036697,2]
[341227859,1730704242235,-500.0,0.00036697,2]
[341227860,1730704242245,-500.0,0.00036697,2]
[341227861,1730704242254,-220.35960041,0.00036697,2]
[341227862,1730704242264,-177.92942853,0.00036697,2]
[341227863,1730704242273,-500.0,0.00036697,2]
[341227864,1730704242283,-500.0,0.00036697,2]
[341227865,1730704242293,-500.0,0.00036697,2]
[341227866,1730704242302,-500.0,0.00036697,2]
[341227867,1730704242312,-500.0,0.00036697,2]
[341227868,1730704242322,-500.0,0.00036697,2]
[341227869,1730704242333,-500.0,0.00036697,2]
[341227870,1730704242343,-500.0,0.00036697,2]
[341227871,1730704242352,-189.62243035,0.00036697,2]
[341227872,1730704242362,-500.0,0.00036697,2]
[341227873,1730704242371,-500.0,0.00036697,2]
[341227874,1730704242476,-204.35634078,0.00036697,2]
[341227875,1730704242487,-505.16813074,0.00036697,2]
[341227876,1730704242496,-291.36982394,0.00036697,2]
[341227877,1730704242505,-500.0,0.00036697,2]
[341227878,1730704242515,-500.0,0.00036697,2]
[341227879,1730704242525,-500.0,0.00036697,2]
[341227880,1730704242534,-500.0,0.00036697,2]
[341227881,1730704242543,-500.0,0.00036697,2]
[341227882,1730704242553,-500.0,0.00036697,2]
[341227883,1730704242562,-500.0,0.00036697,2]
[341227884,1730704242572,-549.95681763,0.00036697,2]
[341227885,1730704242582,-500.0,0.00036697,2]
[341227886,1730704242592,-500.0,0.00036697,2]
[341227887,1730704242601,-503.32939261,0.00036697,2]
[341227888,1730704242610,-518.53209222,0.00036697,2]
[341227890,1730704242621,-537.99502771,0.00036697,2]
[341227892,1730704242631,-500.0,0.00036697,2]
[341227893,1730704242644,-314.25044398,0.00036697,2]
[341227894,1730704242653,-500.0,0.00036697,2]
[341227895,1730704242662,-500.0,0.00036697,2]
[341227896,1730704242671,-500.0,0.00036697,2]
[341227897,1730704242681,-316.46954675,0.00036697,2]
[341227898,1730704242691,-500.0,0.00036697,2]
[341227899,1730704242700,-500.0,0.00036697,2]
[341227900,1730704242710,-500.0,0.00036697,2]
[341227901,1730704242720,-616.20710746,0.00036697,2]
[341227902,1730704242730,-576.72188645,0.00036697,2]
[341227903,1730704242739,-543.04276845,0.00036697,2]
[341227904,1730704242748,-500.0,0.00036697,2]
[341227905,1730704242758,-500.0,0.00036697,2]
[341227906,1730704242767,-500.0,0.00036697,2]
[341227907,1730704242777,-500.0,0.00036697,2]
[341227908,1730704242787,-500.0,0.00036697,2]
[341227909,1730704242796,-500.0,0.00036697,2]
[341227910,1730704242806,-518.79286141,0.00036697,2]
[341227911,1730704242815,-500.0,0.00036697,2]
[341227912,1730704242824,-500.0,0.00036697,2]
[341227913,1730704242834,-500.0,0.00036697,2]
[341227914,1730704242844,-500.0,0.00036697,2]
[341227915,1730704242853,-500.0,0.00036697,2]
[341227916,1730704242862,-512.13564444,0.00036697,2]
[341227917,1730704242872,-500.0,0.00036697,2]
[341227918,1730704242881,-558.28402986,0.00036697,2]
[341227919,1730704242891,-500.0,0.00036697,2]
[341227920,1730704242900,-522.05818582,0.00036697,2]
[341227921,1730704242909,-510.1090732,0.00036697,2]
[341227922,1730704242919,-500.0,0.00036697,2]
[341227923,1730704242929,-500.0,0.00036697,2]
[341227924,1730704242938,-511.28219718,0.00036697,2]
[341227925,1730704242948,-500.0,0.00036697,2]
[341227926,1730704242957,-539.21628959,0.00036697,2]
[341227927,1730704242967,-500.0,0.00036697,2]
[341227928,1730704242977,-526.6819334,0.00036697,2]
[341227929,1730704242987,-500.0,0.00036697,2]
[341227930,1730704242996,-500.0,0.00036697,2]
[341227931,1730704243006,-555.02029284,0.00036697,2]
[341227932,1730704243015,-500.0,0.00036697,2]
[341227933,1730704243024,-439.34130847,0.00036697,2]
[341227934,1730704243034,-500.0,0.00036697,2]
[341227935,1730704243043,-500.0,0.00036697,2]
[341227936,1730704243053,-500.0,0.00036697,2]
[341227937,1730704243062,-520.33554559,0.00036697,2]
[341227938,1730704243071,-550.72730263,0.00036697,2]
[341227939,1730704243080,-322.56218596,0.00036697,2]
[341227940,1730704243090,-500.0,0.00036697,2]
[341227941,1730704243099,-175.726207,0.00036697,7]
[341227942,1730704243109,-175.726207,0.00036697,7]
[341227943,1730704243118,-175.726207,0.00036697,7]
[341227944,1730704243129,-546.41842063,0.00036697,2]
[341227945,1730704243140,-175.726207,0.00036697,7]
[341227946,1730704243149,-500.0,0.00036697,2]
[341227947,1730704243160,-175.726207,0.00036697,7]
[341227948,1730704243170,-205.24374428,0.00036697,2]
[341227949,1730704243179,-175.726207,0.00036697,7]
[341227950,1730704243188,-175.726207,0.00036697,7]
[341227951,1730704243199,-175.726207,0.00036697,7]
[341227952,1730704243208,-500.0,0.00036697,2]
[341227953,1730704243217,-500.0,0.00036697,2]
[341227954,1730704243226,-519.17315692,0.00036697,2]
[341227955,1730704243236,-500.0,0.00036697,2]
[341227956,1730704243245,-500.0,0.00036697,2]
[341227957,1730704243254,-504.3551615,0.00036697,2]
[341227958,1730704243264,-500.0,0.00036697,2]
[341227959,1730704243273,-500.0,0.00036697,2]
[341227960,1730704243282,-500.0,0.00036697,2]
[341227961,1730704243291,-500.0,0.00036697,2]
[341227962,1730704243300,-500.0,0.00036697,2]
[341227963,1730704243310,-268.12594805,0.00036697,2]
[341227964,1730704243319,-500.0,0.00036697,2]
[341227965,1730704243328,-500.0,0.00036697,2]
[341227966,1730704243337,-504.00299195,0.00036697,2]
[341227967,1730704243347,-523.07362517,0.00036697,2]
[341227968,1730704243356,-500.0,0.00036697,2]
[341227969,1730704243366,-500.0,0.00036697,2]
[341227970,1730704243375,-501.65307143,0.00036697,2]
[341227971,1730704243384,-499.9998091,0.00036697,2]
[341227972,1730704243393,-500.0,0.00036697,2]
[341227973,1730704243403,-500.0,0.00036697,2]
[341227974,1730704243413,-512.29636774,0.00036697,2]
[341227975,1730704243429,-510.68452589,0.00036697,2]
[341227976,1730704243438,-503.08634253,0.00036697,2]
[341227977,1730704243447,-503.293522,0.00036697,7]
[341227978,1730704243456,-503.293522,0.00036697,7]
[341227979,1730704243466,-503.293522,0.00036697,7]
[341227980,1730704243475,-528.17092418,0.00036697,2]
[341227981,1730704243484,-500.0,0.00036697,2]
[341227982,1730704243493,-522.5183973,0.00036697,2]
[341227983,1730704243502,-503.293522,0.00036697,7]
[341227984,1730704243512,-547.48050516,0.00036697,2]
[341227985,1730704243521,-500.0,0.00036697,2]
[341227986,1730704243530,-483.92711661,0.00036697,2]
[341227987,1730704243540,-595.61958717,0.00036697,2]
[341227988,1730704243549,-566.34267696,0.00036697,2]
[341227989,1730704243558,-500.0,0.00036697,2]
[341227990,1730704243567,-511.83848712,0.00036697,2]
[341227991,1730704243575,-525.22206851,0.00036697,2]
[341227992,1730704243585,-251.12785787,0.00036697,2]
[341227993,1730704243594,-500.0,0.00036697,2]
[341227994,1730704243603,-500.0,0.00036697,2]
[341227996,1730704243613,-500.0,0.00036697,2]
[341227997,1730704243622,-500.0,0.00036697,2]
[341227998,1730704243631,-516.15088222,0.00036697,2]
[341227999,1730704243643,-500.0,0.00036697,2]
[341228000,1730704243653,-551.56521877,0.00036697,2]
[341228001,1730704243663,-506.08727197,0.00036697,2]
[341228002,1730704243672,-521.32307581,0.00036697,2]
[341228003,1730704243683,-500.0,0.00036697,2]
[341228004,1730704243692,-538.64594116,0.00036697,2]
[341228005,1730704243702,-500.0,0.00036697,2]
[341228006,1730704243712,-500.0,0.00036697,2]
[341228007,1730704243721,-500.0,0.00036697,2]
[341228008,1730704243731,-500.0,0.00036697,2]
[341228009,1730704243740,-500.0,0.00036697,2]
[341228010,1730704243750,-514.33868815,0.00036697,2]
[341228011,1730704243759,-553.46083347,0.00036697,2]
[341228012,1730704243768,-523.88743528,0.00036697,2]
[341228013,1730704243778,-535.14530221,0.00036697,2]
[341228014,1730704243787,-500.0,0.00036697,2]
[341228015,1730704243797,-500.77280186,0.00036697,2]
[341228016,1730704243806,-511.71107437,0.00036697,2]
[341228017,1730704243815,-526.01008846,0.00036697,2]
[341228018,1730704243825,-500.0,0.00036697,2]
[341228019,1730704243835,-548.36477284,0.00036697,2]
[341228020,1730704243844,-500.0,0.00036697,2]
[341228021,1730704243853,-540.94987881,0.00036697,2]
[341228022,1730704243862,-500.0,0.00036697,2]
[341228023,1730704243872,-498.27437864,0.00036697,2]
[341228024,1730704243881,-500.0,0.00036697,2]
[341228025,1730704243890,-533.68866994,0.00036697,2]
[341228026,1730704243900,-500.0,0.00036697,2]
[341228027,1730704243908,-507.94858729,0.00036697,2]
[341228028,1730704243918,-576.82760215,0.00036697,2]
[341228029,1730704243927,-546.70478575,0.00036697,2]
[341228030,1730704243937,-311.94564416,0.00036697,2]
[341228031,1730704243947,-500.0,0.00036697,2]
[341228032,1730704243958,-539.82,0.00036697,2]
[341228033,1730704243970,-548.78008183,0.00036697,2]
[341228034,1730704243987,-500.0,0.00036697,2]
[341228035,1730704243997,-500.0,0.00036697,2]
[341228036,1730704244006,-523.95553366,0.00036697,2]
[341228037,1730704244015,-500.0,0.00036697,2]
[341228038,1730704244024,-557.09160404,0.00036697,2]
[341228039,1730704244034,-500.0,0.00036697,2]
[341228040,1730704244043,-500.45423785,0.00036697,2]
[341228041,1730704244052,-500.0,0.00036697,2]
[341228042,1730704244062,-523.36189523,0.00036697,2]
[341228043,1730704244072,-744.8,0.00036697,2]